fUSD/lending_fUSD_20250616
["ID","MTS","AMOUNT","RATE_DAILY","PERIOD"]
[366098092,1750061442689,-137.45962121,0.00016438,2]
[366098093,1750061442699,-610.26613135,0.00016438,2]
[366098094,1750061442711,-956.70007194,0.00016438,2]
[366098095,1750061442722,-947.36912179,0.00016438,2]
[366098097,1750061443380,-7106.29467492,0.00016438,2]
[366098098,1750061443390,-123.85168637,0.00016438,2]
[366098099,1750061443402,-888.43831363,0.00016438,2]
[366098101,1750061443412,-490.0,0.00016438,2]
[366098103,1750061443422,-490.0,0.00016438,2]
[366098105,1750061443432,-490.0,0.00016438,2]
[366098107,1750061443441,-490.0,0.00016438,2]
[366098109,1750061443451,-1269.13,0.00016438,2]
[366098111,1750061443460,-1824.71,0.00016438,2]
[366098113,1750061443470,-1890.2,0.00016438,2]
[366098115,1750061443479,-832.21,0.00016438,2]
[366098117,1750061443490,-2369.79,0.00016438,2]
[366098119,1750061443499,-500.0,0.00016438,2]
[366098121,1750061443509,-1915.18,0.00016438,2]
[366098123,1750061443519,-676.22,0.00016438,2]
[366098125,1750061443528,-490.0,0.00016438,2]
[366098127,1750061443538,-1123.61,0.00016438,2]
[366098129,1750061443548,-491.89,0.00016438,2]
[366098131,1750061443558,-497.03590707,0.00016438,2]
[366098133,1750061443568,-4041.7,0.00016438,2]
[366098135,1750061443578,-490.0,0.00016438,2]
[366098137,1750061443587,-490.0,0.00016438,2]
[366098138,1750061443596,-490.0,0.00016438,2]
[366098140,1750061443606,-1162.09,0.00016438,2]
[366098142,1750061443615,-994.91,0.00016438,2]
[366098145,1750061443625,-435.49817229,0.00016438,2]
[366098147,1750061443635,-560.39,0.00016438,2]
[366098148,1750061443645,-490.0,0.00016438,2]
[366098150,1750061443655,-6193.33,0.00016438,2]
[366098151,1750061443665,-490.0,0.00016438,2]
[366098152,1750061443674,-490.0,0.00016438,2]
[366098153,1750061443684,-1625.86,0.00016438,2]
[366098154,1750061443693,-490.0,0.00016438,2]
[366098155,1750061443702,-490.0,0.00016438,2]
[366098156,1750061443712,-1702.33,0.00016438,2]
[366098157,1750061443722,-496.73142014,0.00016438,2]
[366098158,1750061443732,-493.78336874,0.00016438,2]
[366098159,1750061443741,-490.0,0.00016438,2]
[366098160,1750061443751,-914.52,0.00016438,2]
[366098161,1750061443760,-926.21,0.00016438,2]
[366098162,1750061443770,-831.18,0.00016438,2]
[366098163,1750061443780,-3303.0,0.00016438,2]
[366098164,1750061443790,-740.05,0.00016438,2]
[366098165,1750061443799,-490.0,0.00016438,2]
[366098166,1750061443809,-800.07,0.00016438,2]
[366098167,1750061443818,-3130.75,0.00016438,2]
[366098168,1750061443828,-490.0,0.00016438,2]
[366098169,1750061443838,-490.0,0.00016438,2]
[366098170,1750061443847,-2576.36,0.00016438,2]
[366098171,1750061443859,-595.86,0.00016438,2]
[366098172,1750061443869,-1408.5,0.00016438,2]
[366098173,1750061443878,-490.0,0.00016438,2]
[366098174,1750061443888,-1641.25,0.00016438,2]
[366098175,1750061443898,-1623.48,0.00016438,2]
[366098176,1750061443907,-938.66,0.00016438,2]
[366098177,1750061443917,-699.64,0.00016438,2]
[366098178,1750061443928,-595.18,0.00016438,2]
[366098179,1750061443938,-490.0,0.00016438,2]
[366098180,1750061443948,-3949.32,0.00016438,2]
[366098181,1750061443957,-1000.0,0.00016438,2]
[366098182,1750061443967,-1000.0,0.00016438,2]
[366098183,1750061443976,-1000.0,0.00016438,2]
[366098184,1750061443985,-1000.0,0.00016438,2]
[366098185,1750061443995,-1000.0,0.00016438,2]
[366098186,1750061444005,-1000.0,0.00016438,2]
[366098187,1750061444014,-1000.0,0.00016438,2]
[366098188,1750061444024,-1000.0,0.00016438,2]
[366098189,1750061444034,-1000.0,0.00016438,2]
[366098190,1750061444044,-1000.0,0.00016438,2]
[366098191,1750061444054,-1000.0,0.00016438,2]
[366098192,1750061444068,-1000.0,0.00016438,2]
[366098193,1750061444077,-1000.0,0.00016438,2]
[366098194,1750061444088,-1000.0,0.00016438,2]
[366098195,1750061444098,-1000.0,0.00016438,2]
[366098196,1750061444107,-1000.0,0.00016438,2]
[366098197,1750061444116,-1000.0,0.00016438,2]
[366098198,1750061444126,-1000.0,0.00016438,2]
[366098199,1750061444135,-1000.0,0.00016438,2]
[366098200,1750061444145,-1000.0,0.00016438,2]
[366098201,1750061444154,-1000.0,0.00016438,2]
[366098202,1750061444163,-1000.0,0.00016438,2]
[366098203,1750061444172,-1000.0,0.00016438,2]
[366098204,1750061444182,-1000.0,0.00016438,2]
[366098205,1750061444191,-1000.0,0.00016438,2]
[366098206,1750061444200,-1004.0,0.00016438,2]
[366098207,1750061444210,-150.0,0.00016438,2]
[366098208,1750061444219,-3635.83096873,0.00016448,2]
[366098209,1750061444228,-3499.41051183,0.00016448,2]
[366098210,1750061444238,-169.87767286,0.0001645,2]
[366098211,1750061444247,-455.21597687,0.00016487,2]
[366098212,1750061444256,-200.0,0.000165,6]
[366098213,1750061444266,-1491.0,0.000165,2]
[366098214,1750061444276,-214.39860607,0.00016502,2]
[366098215,1750061444285,-3635.83096873,0.00016502,2]
[366098216,1750061444295,-19678.78077374,0.00016521,2]
[366098217,1750061444304,-833.8156298,0.00016522,2]
[366098218,1750061444315,-637.0,0.00016557,2]
[366098219,1750061444325,-802.0,0.00016557,2]
[366098220,1750061444335,-1277.0,0.00016557,2]
[366098221,1750061444345,-2003.0,0.00016557,2]
[366098222,1750061444354,-590.0,0.00016557,2]
[366098223,1750061444365,-928.0,0.00016557,2]
[366098224,1750061444375,-558.0,0.00016557,2]
[366098225,1750061444385,-3635.83096873,0.00016557,2]
[366098226,1750061444394,-169.87767286,0.00016563,2]
[366098227,1750061444403,-160.97116267,0.00016592,2]
[366098228,1750061444413,-1808.872,0.00016595,2]
[366098229,1750061444424,-1160.0,0.00016595,2]
[366098230,1750061444434,-155.0,0.00016595,2]
[366098231,1750061444444,-7112.0,0.00016595,2]
[366098232,1750061444453,-887.452,0.00016595,2]
[366098233,1750061444463,-4090.0,0.00016595,2]
[366098234,1750061444473,-2999.99,0.000166,2]
[366098235,1750061444483,-2999.99,0.000166,2]
[366098236,1750061444495,-3000.02,0.000166,2]
[366098237,1750061444516,-2999.99,0.000166,2]
[366098238,1750061444533,-3000.01,0.000166,2]
[366098239,1750061444543,-3417.95,0.000166,2]
[366098240,1750061444554,-1776.94,0.000166,2]
[366098241,1750061444565,-153.0,0.000166,3]
[366098242,1750061444574,-153.0,0.000166,3]
[366098243,1750061444584,-500.0,0.000166,2]
[366098244,1750061444594,-200.0,0.000166,6]
[366098245,1750061444604,-500.0,0.000166,2]
[366098246,1750061444613,-491.36768013,0.00016601,2]
[366098247,1750061444623,-17484.86,0.00016601,2]
[366098248,1750061444632,-500.0,0.00016601,2]
[366098249,1750061444642,-500.0,0.00016601,2]
[366098250,1750061444651,-938.1,0.00016601,2]
[366098251,1750061444661,-3711.87,0.00016601,2]
[366098252,1750061444671,-1433.2,0.00016601,2]
[366098253,1750061444680,-1793.74,0.00016601,2]
[366098254,1750061444689,-3242.97,0.00016601,2]
[366098255,1750061444699,-214.68,0.00016601,2]
[366098256,1750061444708,-2292.43,0.00016601,2]
[366098257,1750061444718,-2336.84,0.00016601,2]
[366098258,1750061444727,-500.0,0.00016601,2]
[366098259,1750061444737,-500.0,0.00016601,2]
[366098260,1750061444746,-471.88797676,0.00016601,2]
[366098261,1750061444755,-1485.38,0.00016601,2]
[366098262,1750061444765,-4305.73,0.00016601,2]
[366098263,1750061444774,-500.0,0.00016601,2]
[366098264,1750061444783,-500.0,0.00016601,2]
[366098265,1750061444792,-500.0,0.00016601,2]
[366098266,1750061444801,-151.0,0.00016602,2]
[366098267,1750061444811,-151.0,0.00016602,2]
[366098268,1750061444820,-262.913495,0.00016602,2]
[366098269,1750061444830,-601.675264,0.00016602,2]
[366098270,1750061444839,-262.913495,0.00016602,2]
[366098271,1750061444850,-601.675264,0.00016602,2]
[366098272,1750061444860,-340.451039,0.00016602,2]
[366098273,1750061444869,-340.451039,0.00016602,2]
[366098274,1750061444878,-151.0,0.00016602,2]
[366098275,1750061444887,-151.0,0.00016602,2]
[366098276,1750061444898,-151.0,0.00016602,2]
[366098277,1750061444907,-151.0,0.00016602,2]
[366098278,1750061444916,-338.229185,0.00016602,2]
[366098279,1750061444927,-338.229185,0.00016602,2]
[366098280,1750061444944,-151.0,0.00016602,2]
[366098281,1750061444954,-151.0,0.00016602,2]
[366098282,1750061444963,-217.515172,0.00016602,2]
[366098283,1750061444972,-159.858245,0.00016602,2]
[366098284,1750061444982,-159.858245,0.00016602,2]
[366098285,1750061444991,-490.0,0.00016602,2]
[366098286,1750061445001,-763.807748,0.00016602,2]
[366098287,1750061445010,-763.807748,0.00016602,2]
[366098288,1750061445020,-490.095984,0.00016602,2]
[366098289,1750061445030,-766.71,0.00016602,2]
[366098290,1750061445040,-490.095984,0.00016602,2]
[366098291,1750061445049,-725.66,0.00016602,2]
[366098292,1750061445058,-903.73,0.00016602,2]
[366098293,1750061445067,-950.33,0.00016602,2]
[366098294,1750061445076,-490.0,0.00016602,2]
[366098295,1750061445086,-610.82,0.00016602,2]
[366098296,1750061445095,-579.18,0.00016602,2]
[366098297,1750061445104,-521.94,0.00016602,2]
[366098298,1750061445114,-490.0,0.00016602,2]
[366098299,1750061445124,-1195.76,0.00016602,2]
[366098300,1750061445133,-490.0,0.00016602,2]
[366098301,1750061445142,-490.0,0.00016602,2]
[366098302,1750061445151,-490.0,0.00016602,2]
[366098303,1750061445161,-490.0,0.00016602,2]
[366098304,1750061445171,-490.0,0.00016602,2]
[366098305,1750061445180,-520.05,0.00016602,2]
[366098306,1750061445189,-1408.51,0.00016602,2]
[366098307,1750061445199,-490.0,0.00016602,2]
[366098308,1750061445208,-614.51602499,0.00016602,2]
[366098309,1750061445218,-490.0,0.00016602,2]
[366098310,1750061445227,-673.4,0.00016602,2]
[366098311,1750061445236,-552.749158,0.00016602,2]
[366098312,1750061445245,-552.749158,0.00016602,2]
[366098313,1750061445255,-490.0,0.00016602,2]
[366098314,1750061445264,-490.0,0.00016602,2]
[366098315,1750061445273,-548.87,0.00016602,2]
[366098316,1750061445283,-490.0,0.00016602,2]
[366098317,1750061445292,-490.0,0.00016602,2]
[366098318,1750061445301,-764.98,0.00016602,2]
[366098319,1750061445312,-490.0,0.00016602,2]
[366098320,1750061445322,-490.0,0.00016602,2]
[366098321,1750061445332,-490.0,0.00016602,2]
[366098322,1750061445342,-490.0,0.00016602,2]
[366098323,1750061445351,-1562.61,0.00016602,2]
[366098324,1750061445360,-490.0,0.00016602,2]
[366098325,1750061445370,-178.84054972,0.00016602,2]
[366098326,1750061445379,-529.6,0.00016602,2]
[366098327,1750061445389,-490.0,0.00016602,2]
[366098328,1750061445399,-490.0,0.00016602,2]
[366098329,1750061445408,-490.0,0.00016602,2]
[366098330,1750061445417,-490.0,0.00016602,2]
[366098331,1750061445427,-490.0,0.00016602,2]
[366098332,1750061445436,-490.0,0.00016602,2]
[366098333,1750061445446,-258.515498,0.00016602,2]
[366098334,1750061445456,-650.5,0.00016602,2]
[366098335,1750061445465,-258.515498,0.00016602,2]
[366098336,1750061445474,-490.0,0.00016602,2]
[366098337,1750061445483,-490.0,0.00016602,2]
[366098338,1750061445493,-490.0,0.00016602,2]
[366098339,1750061445502,-687.6,0.00016602,2]
[366098340,1750061445512,-490.0,0.00016602,2]
[366098341,1750061445521,-643.59,0.00016602,2]
[366098342,1750061445531,-532.35,0.00016602,2]
[366098343,1750061445540,-490.0,0.00016602,2]
[366098344,1750061445550,-490.0,0.00016602,2]
[366098345,1750061445559,-490.0,0.00016602,2]
[366098346,1750061445569,-490.0,0.00016602,2]
[366098347,1750061445579,-300.0,0.00016602,2]
[366098348,1750061445588,-490.0,0.00016602,2]
[366098349,1750061445598,-490.0,0.00016602,2]
[366098350,1750061445608,-490.0,0.00016602,2]
[366098351,1750061445617,-490.0,0.00016602,2]
[366098352,1750061445626,-490.0,0.00016602,2]
[366098353,1750061445636,-971.32,0.00016602,2]
[366098354,1750061445650,-490.0,0.00016602,2]
[366098355,1750061445660,-1310.34,0.00016602,2]
[366098356,1750061445669,-490.0,0.00016602,2]
[366098357,1750061445679,-490.0,0.00016602,2]
[366098358,1750061445688,-1609.63,0.00016602,2]
[366098359,1750061445698,-752.79,0.00016602,2]
[366098360,1750061445708,-521.37,0.00016602,2]
[366098361,1750061445717,-490.0,0.00016602,2]
[366098362,1750061445726,-490.0,0.00016602,2]
[366098364,1750061445735,-490.0,0.00016602,2]
[366098365,1750061445745,-490.0,0.00016602,2]
[366098366,1750061445754,-490.0,0.00016602,2]
[366098367,1750061445763,-940.963004,0.00016602,2]
[366098368,1750061445772,-567.62,0.00016602,2]
[366098369,1750061445781,-490.0,0.00016602,2]
[366098370,1750061445791,-682.62,0.00016602,2]
[366098371,1750061445801,-490.0,0.00016602,2]
[366098372,1750061445811,-490.0,0.00016602,2]
[366098373,1750061445820,-940.963004,0.00016602,2]
[366098374,1750061445830,-661.81,0.00016602,2]
[366098375,1750061445839,-992.73,0.00016602,2]
[366098376,1750061445849,-490.0,0.00016602,2]
[366098377,1750061445862,-512.69,0.00016602,2]
[366098378,1750061445871,-490.0,0.00016602,2]
[366098379,1750061445880,-490.0,0.00016602,2]
[366098380,1750061445889,-250.0,0.00016602,2]
[366098381,1750061445899,-1062.93,0.00016602,2]
[366098382,1750061445909,-1353.94,0.00016602,2]
[366098383,1750061445918,-564.27,0.00016602,2]
[366098384,1750061445927,-490.0,0.00016602,2]
[366098385,1750061445938,-490.0,0.00016602,2]
[366098386,1750061445949,-490.0,0.00016602,2]
[366098387,1750061445959,-490.0,0.00016602,2]
[366098388,1750061445968,-490.0,0.00016602,2]
[366098389,1750061445977,-737.58,0.00016602,2]
[366098390,1750061445986,-490.0,0.00016602,2]
[366098391,1750061445996,-596.56,0.00016602,2]
[366098392,1750061446005,-490.0,0.00016602,2]
[366098393,1750061446014,-490.0,0.00016602,2]
[366098394,1750061446024,-490.0,0.00016602,2]
[366098395,1750061446034,-490.0,0.00016602,2]
[366098396,1750061446043,-490.0,0.00016602,2]
[366098397,1750061446052,-490.0,0.00016602,2]
[366098398,1750061446062,-892.95,0.00016602,2]
[366098399,1750061446071,-490.0,0.00016602,2]
[366098400,1750061446081,-490.0,0.00016602,2]
[366098401,1750061446090,-490.0,0.00016602,2]
[366098402,1750061446099,-490.0,0.00016602,2]
[366098403,1750061446109,-722.11,0.00016602,2]
[366098404,1750061446118,-490.0,0.00016602,2]
[366098405,1750061446128,-490.0,0.00016602,2]
[366098406,1750061446137,-490.0,0.00016602,2]
[366098407,1750061446147,-579.66,0.00016602,2]
[366098408,1750061446157,-490.0,0.00016602,2]
[366098409,1750061446166,-549.06,0.00016602,2]
[366098410,1750061446176,-490.0,0.00016602,2]
[366098411,1750061446185,-578.33,0.00016602,2]
[366098412,1750061446195,-603.15,0.00016602,2]
[366098413,1750061446204,-1044.96,0.00016602,2]
[366098414,1750061446214,-544.48,0.00016602,2]
[366098415,1750061446223,-490.0,0.00016602,2]
[366098416,1750061446233,-490.0,0.00016602,2]
[366098417,1750061446243,-490.0,0.00016602,2]
[366098418,1750061446252,-490.0,0.00016602,2]
[366098419,1750061446262,-490.0,0.00016602,2]
[366098420,1750061446271,-200.062729,0.00016602,2]
[366098421,1750061446281,-1130.49,0.00016602,2]
[366098422,1750061446290,-1089.09,0.00016602,2]
[366098423,1750061446299,-490.0,0.00016602,2]
[366098424,1750061446309,-490.0,0.00016602,2]
[366098425,1750061446318,-200.062729,0.00016602,2]
[366098426,1750061446328,-548.86,0.00016602,2]
[366098427,1750061446337,-985.24,0.00016602,2]
[366098428,1750061446346,-490.0,0.00016602,2]
[366098429,1750061446356,-490.0,0.00016602,2]
[366098430,1750061446365,-857.22,0.00016602,2]
[366098431,1750061446375,-154.574086,0.00016602,2]
[366098432,1750061446384,-1292.52,0.00016602,2]
[366098433,1750061446394,-555.5,0.00016602,2]
[366098434,1750061446404,-498.25,0.00016602,2]
[366098435,1750061446414,-490.0,0.00016602,2]
[366098437,1750061446423,-1276.34,0.00016602,2]
[366098439,1750061446433,-500.15395209,0.00016602,2]
[366098441,1750061446443,-490.0,0.00016602,2]
[366098443,1750061446452,-490.0,0.00016602,2]
[366098445,1750061446462,-1285.8,0.00016602,2]
[366098447,1750061446471,-620.35,0.00016602,2]
[366098449,1750061446481,-688.33,0.00016602,2]
[366098451,1750061446490,-634.09,0.00016602,2]
[366098453,1750061446499,-1323.7,0.00016602,2]
[366098465,1750061446716,-661.13,0.00016602,2]
[366098466,1750061446726,-640.68,0.00016602,2]
[366098467,1750061446735,-560.28,0.00016602,2]
[366098468,1750061446744,-490.0,0.00016602,2]
[366098469,1750061446753,-490.0,0.00016602,2]
[366098470,1750061446762,-151.0,0.00016602,2]
[366098471,1750061446771,-845.31,0.00016602,2]
[366098472,1750061446781,-1204.56,0.00016602,2]
[366098473,1750061446790,-490.0,0.00016602,2]
[366098474,1750061446800,-490.0,0.00016602,2]
[366098475,1750061446809,-151.0,0.00016602,2]
[366098476,1750061446818,-490.0,0.00016602,2]
[366098477,1750061446827,-490.0,0.00016602,2]
[366098478,1750061446837,-1493.53,0.00016602,2]
[366098479,1750061446847,-490.0,0.00016602,2]
[366098480,1750061446859,-778.43,0.00016602,2]
[366098481,1750061446868,-585.45,0.00016602,2]
[366098482,1750061446878,-535.32,0.00016602,2]
[366098483,1750061446887,-490.0,0.00016602,2]
[366098484,1750061446897,-1285.35,0.00016602,2]
[366098485,1750061446906,-151.0,0.00016602,2]
[366098486,1750061446916,-252.755565,0.00016602,2]
[366098487,1750061446926,-252.755565,0.00016602,2]
[366098488,1750061446937,-490.0,0.00016602,2]
[366098489,1750061446948,-490.0,0.00016602,2]
[366098490,1750061446957,-490.0,0.00016602,2]
[366098491,1750061446966,-557.07575189,0.00016602,2]
[366098492,1750061446976,-1539.3,0.00016602,2]
[366098493,1750061446986,-490.0,0.00016602,2]
[366098494,1750061446995,-490.0,0.00016602,2]
[366098495,1750061447004,-934.86,0.00016602,2]
[366098496,1750061447013,-1006.72,0.00016602,2]
[366098497,1750061447023,-981.92,0.00016602,2]
[366098498,1750061447032,-490.0,0.00016602,2]
[366098499,1750061447042,-151.0,0.00016602,2]
[366098500,1750061447051,-567.99,0.00016602,2]
[366098501,1750061447062,-910.13,0.00016602,2]
[366098502,1750061447071,-498.43,0.00016602,2]
[366098503,1750061447081,-490.0,0.00016602,2]
[366098504,1750061447090,-490.0,0.00016602,2]
[366098505,1750061447099,-533.7,0.00016602,2]
[366098506,1750061447110,-689.76,0.00016602,2]
[366098507,1750061447119,-490.0,0.00016602,2]
[366098508,1750061447129,-609.86,0.00016602,2]
[366098509,1750061447139,-536.3,0.00016602,2]
[366098510,1750061447148,-938.89,0.00016602,2]
[366098511,1750061447157,-981.33,0.00016602,2]
[366098512,1750061447166,-596.12,0.00016602,2]
[366098513,1750061447175,-540.54,0.00016602,2]
[366098514,1750061447184,-868.98,0.00016602,2]
[366098515,1750061447193,-490.0,0.00016602,2]
[366098516,1750061447202,-630.97,0.00016602,2]
[366098517,1750061447211,-490.0,0.00016602,2]
[366098518,1750061447220,-490.0,0.00016602,2]
[366098519,1750061447229,-1249.71,0.00016602,2]
[366098520,1750061447238,-490.0,0.00016602,2]
[366098521,1750061447247,-490.0,0.00016602,2]
[366098522,1750061447256,-1091.45,0.00016602,2]
[366098523,1750061447266,-490.0,0.00016602,2]
[366098524,1750061447275,-687.83,0.00016602,2]
[366098525,1750061447285,-151.0,0.00016602,2]
[366098526,1750061447294,-490.0,0.00016602,2]
[366098527,1750061447304,-599.74,0.00016602,2]
[366098528,1750061447314,-490.0,0.00016602,2]
[366098529,1750061447323,-254.617106,0.00016602,2]
[366098530,1750061447333,-1136.56,0.00016602,2]
[366098531,1750061447343,-490.0,0.00016602,2]
[366098532,1750061447352,-643.4,0.00016602,2]
[366098533,1750061447362,-712.64,0.00016602,2]
[366098534,1750061447371,-490.0,0.00016602,2]
[366098535,1750061447382,-490.0,0.00016602,2]
[366098536,1750061447392,-1932.78,0.00016602,2]
[366098537,1750061447402,-490.0,0.00016602,2]
[366098538,1750061447411,-523.79,0.00016602,2]
[366098539,1750061447421,-490.0,0.00016602,2]
[366098540,1750061447431,-490.0,0.00016602,2]
[366098541,1750061447440,-998.8,0.00016602,2]
[366098542,1750061447450,-490.0,0.00016602,2]
[366098543,1750061447463,-159.750425,0.00016602,2]
[366098544,1750061447634,-490.0,0.00016602,2]
[366098545,1750061447666,-625.48,0.00016602,2]
[366098546,1750061447677,-1170.56,0.00016602,2]
[366098547,1750061447687,-159.750425,0.00016602,2]
[366098548,1750061447696,-490.0,0.00016602,2]
[366098549,1750061447706,-451.2024598,0.00016602,2]
[366098550,1750061447715,-490.0,0.00016602,2]
[366098551,1750061447725,-490.0,0.00016602,2]
[366098552,1750061447735,-545.29,0.00016602,2]
[366098553,1750061447745,-800.48,0.00016602,2]
[366098554,1750061447755,-2153.03,0.00016602,2]
[366098555,1750061447765,-1625.26,0.00016602,2]
[366098556,1750061447775,-490.0,0.00016602,2]
[366098557,1750061447785,-1595.49,0.00016602,2]
[366098558,1750061447794,-848.12,0.00016602,2]
[366098559,1750061447804,-490.0,0.00016602,2]
[366098560,1750061447815,-585.13,0.00016602,2]
[366098561,1750061447825,-721.69,0.00016602,2]
[366098562,1750061447835,-490.0,0.00016602,2]
[366098563,1750061447845,-490.0,0.00016602,2]
[366098564,1750061447859,-490.0,0.00016602,2]
[366098565,1750061447873,-536.75,0.00016602,2]
[366098566,1750061447883,-490.0,0.00016602,2]
[366098567,1750061447893,-490.0,0.00016602,2]
[366098568,1750061447905,-490.0,0.00016602,2]
[366098569,1750061447914,-574.68,0.00016602,2]
[366098570,1750061447924,-490.0,0.00016602,2]
[366098571,1750061447935,-490.0,0.00016602,2]
[366098572,1750061447945,-490.0,0.00016602,2]
[366098573,1750061447963,-490.0,0.00016602,2]
[366098574,1750061447973,-490.0,0.00016602,2]
[366098575,1750061447983,-490.0,0.00016602,2]
[366098576,1750061447993,-974.53,0.00016602,2]
[366098577,1750061448003,-151.0,0.00016602,2]
[366098578,1750061448014,-1011.32,0.00016602,2]
[366098579,1750061448024,-477.26711621,0.00016602,2]
[366098580,1750061448033,-490.0,0.00016602,2]
[366098581,1750061448043,-490.0,0.00016602,2]
[366098582,1750061448054,-1039.63,0.00016602,2]
[366098583,1750061448065,-490.0,0.00016602,2]
[366098584,1750061448075,-201.462331,0.00016602,2]
[366098585,1750061448086,-490.0,0.00016602,2]
[366098586,1750061448096,-201.462331,0.00016602,2]
[366098587,1750061448106,-1001.44,0.00016602,2]
[366098588,1750061448118,-490.0,0.00016602,2]
[366098589,1750061448128,-554.46,0.00016602,2]
[366098590,1750061448138,-1478.18,0.00016602,2]
[366098591,1750061448148,-1022.44,0.00016602,2]
[366098592,1750061448158,-490.0,0.00016602,2]
[366098593,1750061448168,-918.36,0.00016602,2]
[366098594,1750061448178,-490.0,0.00016602,2]
[366098595,1750061448189,-490.0,0.00016602,2]
[366098596,1750061448199,-619.1,0.00016602,2]
[366098597,1750061448209,-1336.48,0.00016602,2]
[366098598,1750061448219,-490.0,0.00016602,2]
[366098599,1750061448229,-694.15,0.00016602,2]
[366098600,1750061448239,-490.0,0.00016602,2]
[366098601,1750061448248,-502.20515958,0.00016602,2]
[366098602,1750061448258,-490.0,0.00016602,2]
[366098603,1750061448268,-1592.38,0.00016602,2]
[366098604,1750061448279,-266.58323733,0.00016602,2]
[366098605,1750061448289,-506.59,0.00016602,2]
[366098606,1750061448299,-512.09,0.00016602,2]
[366098607,1750061448310,-1475.46,0.00016602,2]
[366098608,1750061448320,-490.0,0.00016602,2]
[366098609,1750061448330,-490.0,0.00016602,2]
[366098610,1750061448340,-1151.9,0.00016602,2]
[366098611,1750061448350,-2125.26,0.00016602,2]
[366098612,1750061448360,-490.0,0.00016602,2]
[366098613,1750061448370,-490.0,0.00016602,2]
[366098614,1750061448380,-517.86,0.00016602,2]
[366098615,1750061448391,-491.45,0.00016602,2]
[366098616,1750061448400,-490.0,0.00016602,2]
[366098617,1750061448410,-490.0,0.00016602,2]
[366098618,1750061448420,-490.0,0.00016602,2]
[366098619,1750061448430,-550.6,0.00016602,2]
[366098620,1750061448440,-434.623944,0.00016602,2]
[366098621,1750061448450,-490.0,0.00016602,2]
[366098622,1750061448460,-409.16927831,0.00016602,2]
[366098623,1750061448470,-1774.42,0.00016602,2]
[366098624,1750061448481,-490.0,0.00016602,2]
[366098625,1750061448492,-506.74,0.00016602,2]
[366098626,1750061448503,-610.44,0.00016602,2]
[366098627,1750061448512,-490.0,0.00016602,2]
[366098628,1750061448522,-434.623944,0.00016602,2]
[366098629,1750061448533,-490.0,0.00016602,2]
[366098630,1750061448543,-735.02,0.00016602,2]
[366098631,1750061448553,-490.0,0.00016602,2]
[366098632,1750061448564,-1156.25,0.00016602,2]
[366098633,1750061448574,-1678.6,0.00016602,2]
[366098634,1750061448584,-459.470016,0.00016602,2]
[366098635,1750061448594,-490.0,0.00016602,2]
[366098636,1750061448604,-490.0,0.00016602,2]
[366098637,1750061448615,-459.470016,0.00016602,2]
[366098638,1750061448625,-506.86804404,0.00016602,2]